[Event "GER-chW Blitz 2019"]
[Site "Magdeburg"]
[Date "2019.05.25"]
[Round "12.8"]
[White "Muetsch, Annmarie"]
[Black "Ries, Jutta"]
[Result "1/2-1/2"]
[ECO "B04"]
[WhiteElo "2266"]
[BlackElo "2017"]
[Annotator "NA"]
[PlyCount "117"]
[EventDate "2019.05.25"]
[EventType "tourn"]
[EventCountry "GER"]
[SourceTitle "playchess.com"]
[Source "ChessBase"]
[SourceQuality "1"]
[TimeControl "180+2"]

1. e4 {[%emt 0:00:00]} Nf6 {[%emt 0:00:00]} 2. e5 {[%emt 0:00:02]} Nd5 {[%emt 0:00:00]} 3. d4 {[%emt 0:00:02]} d6 {[%emt 0:00:01]} 4. Nf3 {[%emt 0:00:01]} g6 {[%emt 0:00:01]} 5. Bc4 {[%emt 0:00:02]} Nb6 {[%emt 0:00:01]} 6. Bb3 {[%emt 0:00:02]} Bg7 {[%emt 0:00:07]} 7. Qe2 {[%emt 0:00:01]} O-O {[%emt 0:00:03]} 8. h3 {[%emt 0:00:01]} Nc6 {[%emt 0:00:06]} 9. c3 {[%emt 0:00:08]} dxe5 {[%emt 0:00:11]} 10. dxe5 {[%emt 0:00:03]} Bf5 {[%emt 0:00:06]} 11. Bf4 {[%emt 0:00:35]} e6 {[%emt 0:00:42]} 12. Na3 {[%emt 0:00:15]} Qd3 {[%emt 0:00:25]} 13. Rd1 {[%emt 0:00:18]} Qxe2+ {[%emt 0:00:03]} 14. Kxe2 {[%emt 0:00:01]} Rad8 {[%emt 0:00:03]} 15. Nb5 {[%emt 0:00:10]} Nd7 {[%emt 0:00:39]} 16. Nxc7 {[%emt 0:00:30]} Ndxe5 {[%emt 0:00:03]} 17. Nxe5 {[%emt 0:00:12]} Nxe5 {[%emt 0:00:02]} 18. Bxe5 {[%emt 0:00:28]} Bxe5 {[%emt 0:00:01]} 19. Nb5 {[%emt 0:00:05]} a6 {[%emt 0:00:02]} 20. Na3 {[%emt 0:00:11]} g5 {[%emt 0:00:07]} 21. Bc2 {[%emt 0:00:03]} Bxc2 22. Nxc2 {[%emt 0:00:01]} Kg7 {[%emt 0:00:12]} 23. Ne3 {[%emt 0:00:03]} Bf6 {[%emt 0:00:08]} 24. Rxd8 Rxd8 {[%emt 0:00:01]} 25. Rd1 {[%emt 0:00:13]} Rxd1 {[%emt 0:00:05]} 26. Kxd1 {[%emt 0:00:02]} h5 {[%emt 0:00:03]} 27. Kc2 {[%emt 0:00:02]} Be7 {[%emt 0:00:04]} 28. g4 {[%emt 0:00:09]} hxg4 {[%emt 0:00:03]} 29. hxg4 {[%emt 0:00:01]} Kf6 {[%emt 0:00:01]} 30. Kd3 {[%emt 0:00:05]} Bc5 {[%emt 0:00:05]} 31. Nd1 {[%emt 0:00:03]} Ke5 {[%emt 0:00:02]} 32. f3 {[%emt 0:00:02]} Kf4 {[%emt 0:00:02]} 33. Ke2 {[%emt 0:00:01]} e5 {[%emt 0:00:09]} 34. b3 {[%emt 0:00:04]} e4 {[%emt 0:00:03]} 35. fxe4 {[%emt 0:00:02]} Kxg4 {[%emt 0:00:02]} 36. Nb2 {[%emt 0:00:03]} Bb6 {[%emt 0:00:03]} 37. Nd3 {[%emt 0:00:02]} Kg3 {[%emt 0:00:06]} 38. e5 {[%emt 0:00:02]} Bc7 {[%emt 0:00:05]} 39. Ke3 {[%emt 0:00:02]} g4 {[%emt 0:00:01]} 40. c4 {[%emt 0:00:02]} Kh2 {[%emt 0:00:02]} 41. Ke2 {[%emt 0:00:07]} g3 {[%emt 0:00:01]} 42. Ne1 {[%emt 0:00:03]} Kh1 {[%emt 0:00:06]} 43. Nf3 {[%emt 0:00:02]} g2 {[%emt 0:00:02]} 44. Kf2 {[%emt 0:00:02]} Bb6+ {[%emt 0:00:01]} 45. Kg3 {[%emt 0:00:01]} g1=Q+ {[%emt 0:00:02]} 46. Nxg1 {[%emt 0:00:01]} Bxg1 {[%emt 0:00:01]} 47. Kf4 {[%emt 0:00:02]} Bh2+ {[%emt 0:00:01]} 48. Kf5 {[%emt 0:00:01]} Kg2 {[%emt 0:00:01]} 49. Kf6 {[%emt 0:00:02]} Kf3 {[%emt 0:00:01]} 50. Kxf7 {[%emt 0:00:02]} Bxe5 {[%emt 0:00:01]} 51. Ke6 {[%emt 0:00:01]} Bd4 {[%emt 0:00:02]} 52. Kd5 {[%emt 0:00:02]} Ke3 {[%emt 0:00:02]} 53. c5 {[%emt 0:00:03]} Kd3 {[%emt 0:00:01]} 54. c6 {[%emt 0:00:03]} bxc6+ {[%emt 0:00:03]} 55. Kxc6 {[%emt 0:00:01]} a5 {[%emt 0:00:01]} 56. Kb5 {[%emt 0:00:02]} Bc3 {[%emt 0:00:01]} 57. a3 {[%emt 0:00:02]} Kc2 {[%emt 0:00:02]} 58. b4 {[%emt 0:00:00]} axb4 {[%emt 0:00:01]} 59. axb4 {[%emt 0:00:01]} 1/2-1/2

[Event "GER-chW Blitz 2019"]
[Site "Magdeburg"]
[Date "2019.05.25"]
[Round "12.9"]
[White "Siegl, Melina"]
[Black "Lubbe, Melanie"]
[Result "1-0"]
[ECO "B50"]
[WhiteElo "2029"]
[BlackElo "2278"]
[Annotator "NA"]
[PlyCount "69"]
[EventDate "2019.05.25"]
[EventType "tourn"]
[EventCountry "GER"]
[SourceTitle "playchess.com"]
[Source "ChessBase"]
[SourceQuality "1"]
[TimeControl "180+2"]

1. e4 {[%emt 0:00:00]} c5 {[%emt 0:00:00]} 2. Nf3 {[%emt 0:00:00]} d6 {[%emt 0:00:00]} 3. d3 {[%emt 0:00:01]} Nc6 {[%emt 0:00:01]} 4. g3 {[%emt 0:00:01]} g6 {[%emt 0:00:01]} 5. Bg2 {[%emt 0:00:01]} Bg7 {[%emt 0:00:01]} 6. c3 {[%emt 0:00:01]} e6 {[%emt 0:00:01]} 7. O-O {[%emt 0:00:02]} Nge7 {[%emt 0:00:03]} 8. Re1 {[%emt 0:00:01]} O-O {[%emt 0:00:03]} 9. Nbd2 {[%emt 0:00:01]} Rb8 {[%emt 0:00:01]} 10. Nf1 {[%emt 0:00:02]} b5 {[%emt 0:00:03]} 11. Be3 {[%emt 0:00:02]} b4 {[%emt 0:00:04]} 12. Qd2 {[%emt 0:00:01]} bxc3 13. bxc3 {[%emt 0:00:01]} Ba6 {[%emt 0:00:04]} 14. h4 {[%emt 0:00:06]} Rb6 {[%emt 0:00:13]} 15. Red1 {[%emt 0:00:21]} Qb8 {[%emt 0:00:04]} 16. Bh6 {[%emt 0:00:03]} Rb2 {[%emt 0:00:05]} 17. Qc1 {[%emt 0:00:14]} Qb6 {[%emt 0:00:24]} 18. Bxg7 {[%emt 0:00:04]} Kxg7 {[%emt 0:00:01]} 19. h5 {[%emt 0:00:04]} Rb8 {[%emt 0:00:20]} 20. h6+ {[%emt 0:00:09]} Kf8 {[%emt 0:00:34]} 21. Qf4 {[%emt 0:00:03]} Ng8 {[%emt 0:00:21]} 22. Ng5 {[%emt 0:00:20]} Nxh6 {[%emt 0:00:18]} 23. Nxe6+ {[%emt 0:00:19]} Kg8 {[%emt 0:00:09]} 24. Qxh6 {[%emt 0:00:15]} fxe6 {[%emt 0:00:00]} 25. Bh3 {[%emt 0:00:01]} Nd8 {[%emt 0:00:03]} 26. Ne3 {[%emt 0:00:08]} Qc7 {[%emt 0:00:14]} 27. Ng4 {[%emt 0:00:10]} Qg7 {[%emt 0:00:01]} 28. Qf4 {[%emt 0:00:06]} e5 {[%emt 0:00:15]} 29. Qg5 {[%emt 0:00:31]} Ne6 {[%emt 0:00:12]} 30. Nh6+ {[%emt 0:00:18]} Kf8 {[%emt 0:00:03]} 31. Bxe6 {[%emt 0:00:01]} Bb5 {[%emt 0:00:14]} 32. Ng4 {[%emt 0:00:05]} Ke8 {[%emt 0:00:02]} 33. Nf6+ {[%emt 0:00:06]} Ke7 {[%emt 0:00:01]} 34. Nh5+ {[%emt 0:00:02]} Kf8 {[%emt 0:00:06]} 35. Nxg7 1-0

[Event "GER-chW Blitz 2019"]
[Site "Magdeburg"]
[Date "2019.05.25"]
[Round "12.10"]
[White "Hofmann, Karina"]
[Black "Fuchs, Judith"]
[Result "0-1"]
[ECO "A03"]
[WhiteElo "1700"]
[BlackElo "2218"]
[Annotator "NA"]
[PlyCount "158"]
[EventDate "2019.05.25"]
[EventType "tourn"]
[EventCountry "GER"]
[SourceTitle "playchess.com"]
[Source "ChessBase"]
[SourceQuality "1"]
[TimeControl "180+2"]

1. f4 {[%emt 0:00:00]} d5 {[%emt 0:00:00]} 2. Nf3 {[%emt 0:00:00]} g6 {[%emt 0:00:02]} 3. e3 {[%emt 0:00:01]} Bg7 {[%emt 0:00:01]} 4. Nc3 {[%emt 0:00:01]} c5 {[%emt 0:00:01]} 5. Bb5+ {[%emt 0:00:01]} Nc6 {[%emt 0:00:13]} 6. b3 {[%emt 0:00:02]} Bd7 {[%emt 0:00:09]} 7. Bb2 {[%emt 0:00:02]} e6 {[%emt 0:00:12]} 8. Qe2 {[%emt 0:00:02]} Nge7 {[%emt 0:00:01]} 9. Na4 {[%emt 0:00:07]} Bxb2 10. Nxb2 {[%emt 0:00:03]} a6 {[%emt 0:00:18]} 11. Bxc6 {[%emt 0:00:01]} Nxc6 {[%emt 0:00:01]} 12. O-O {[%emt 0:00:06]} Qf6 {[%emt 0:00:26]} 13. c3 {[%emt 0:00:10]} O-O {[%emt 0:00:07]} 14. d4 {[%emt 0:00:05]} cxd4 {[%emt 0:00:05]} 15. cxd4 {[%emt 0:00:04]} Ne7 {[%emt 0:00:13]} 16. a4 {[%emt 0:00:02]} Nf5 {[%emt 0:00:03]} 17. Ne5 {[%emt 0:00:11]} Rfd8 {[%emt 0:00:07]} 18. Rfc1 {[%emt 0:00:05]} Qe7 {[%emt 0:00:33]} 19. Rc7 {[%emt 0:00:11]} f6 {[%emt 0:00:02]} 20. Ned3 {[%emt 0:00:29]} b6 {[%emt 0:00:06]} 21. Rac1 {[%emt 0:00:01]} Rac8 {[%emt 0:00:08]} 22. Nf2 {[%emt 0:00:45]} Qd6 {[%emt 0:00:20]} 23. Rxc8 {[%emt 0:00:03]} Rxc8 {[%emt 0:00:01]} 24. Rxc8+ {[%emt 0:00:07]} Bxc8 {[%emt 0:00:00]} 25. g4 {[%emt 0:00:09]} Ne7 {[%emt 0:00:05]} 26. Qc2 {[%emt 0:00:07]} e5 {[%emt 0:00:07]} 27. dxe5 {[%emt 0:00:05]} fxe5 {[%emt 0:00:01]} 28. Nbd3 {[%emt 0:00:13]} exf4 {[%emt 0:00:07]} 29. Nxf4 {[%emt 0:00:02]} Bd7 {[%emt 0:00:04]} 30. h3 {[%emt 0:00:01]} Qe5 {[%emt 0:00:06]} 31. Qd3 {[%emt 0:00:06]} b5 {[%emt 0:00:03]} 32. Qd4 {[%emt 0:00:10]} Qxd4 {[%emt 0:00:03]} 33. exd4 {[%emt 0:00:01]} bxa4 {[%emt 0:00:01]} 34. bxa4 Bxa4 {[%emt 0:00:01]} 35. h4 {[%emt 0:00:08]} Bb5 {[%emt 0:00:03]} 36. Nd1 {[%emt 0:00:02]} a5 {[%emt 0:00:01]} 37. Nc3 {[%emt 0:00:01]} Bc4 {[%emt 0:00:01]} 38. Kf2 {[%emt 0:00:02]} Bb3 {[%emt 0:00:03]} 39. Ke3 {[%emt 0:00:02]} a4 {[%emt 0:00:01]} 40. Kd2 {[%emt 0:00:04]} a3 {[%emt 0:00:04]} 41. Kc1 {[%emt 0:00:03]} Nc6 {[%emt 0:00:03]} 42. Nfxd5 {[%emt 0:00:02]} Nxd4 {[%emt 0:00:04]} 43. Nb4 {[%emt 0:00:11]} Nf3 {[%emt 0:00:03]} 44. h5 {[%emt 0:00:01]} Ne5 {[%emt 0:00:04]} 45. hxg6 {[%emt 0:00:01]} hxg6 {[%emt 0:00:01]} 46. Nba2 {[%emt 0:00:03]} Nxg4 {[%emt 0:00:01]} 47. Kd2 {[%emt 0:00:02]} Ne5 {[%emt 0:00:01]} 48. Ke3 {[%emt 0:00:00]} Kf7 {[%emt 0:00:01]} 49. Kf4 {[%emt 0:00:01]} Ke6 {[%emt 0:00:01]} 50. Kg5 {[%emt 0:00:01]} Kf7 {[%emt 0:00:02]} 51. Nb4 {[%emt 0:00:01]} Nf3+ {[%emt 0:00:03]} 52. Kg4 {[%emt 0:00:02]} Nd4 {[%emt 0:00:01]} 53. Nba2 {[%emt 0:00:01]} Nc2 {[%emt 0:00:01]} 54. Kg5 {[%emt 0:00:04]} Ne3 {[%emt 0:00:01]} 55. Kf4 {[%emt 0:00:01]} Nc4 {[%emt 0:00:01]} 56. Ke4 {[%emt 0:00:01]} Kg7 {[%emt 0:00:03]} 57. Kd4 {[%emt 0:00:01]} Nd6 {[%emt 0:00:01]} 58. Kc5 {[%emt 0:00:01]} Nf5 {[%emt 0:00:01]} 59. Kb4 {[%emt 0:00:01]} Bxa2 {[%emt 0:00:01]} 60. Nxa2 {[%emt 0:00:01]} g5 {[%emt 0:00:02]} 61. Kxa3 g4 62. Nc3 {[%emt 0:00:07]} g3 {[%emt 0:00:06]} 63. Ne2 {[%emt 0:00:02]} g2 {[%emt 0:00:02]} 64. Ng1 {[%emt 0:00:00]} Kf6 {[%emt 0:00:02]} 65. Kb3 {[%emt 0:00:01]} Ke5 66. Kc3 {[%emt 0:00:00]} Kf4 {[%emt 0:00:03]} 67. Kd2 {[%emt 0:00:01]} Kg3 {[%emt 0:00:01]} 68. Ke2 {[%emt 0:00:03]} Nd4+ {[%emt 0:00:00]} 69. Ke3 {[%emt 0:00:02]} Nc2+ {[%emt 0:00:02]} 70. Kd2 {[%emt 0:00:03]} Na3 {[%emt 0:00:03]} 71. Ke3 {[%emt 0:00:00]} Nc4+ {[%emt 0:00:01]} 72. Kd3 {[%emt 0:00:01]} Ne5+ {[%emt 0:00:01]} 73. Ke3 {[%emt 0:00:01]} Nf7 {[%emt 0:00:01]} 74. Ne2+ {[%emt 0:00:01]} Kh2 {[%emt 0:00:02]} 75. Kf2 {[%emt 0:00:01]} Ng5 {[%emt 0:00:02]} 76. Ng1 {[%emt 0:00:02]} Ne4+ {[%emt 0:00:02]} 77. Kf3 {[%emt 0:00:06]} Kxg1 {[%emt 0:00:02]} 78. Kxe4 {[%emt 0:00:01]} Kf1 {[%emt 0:00:00]} 79. Kf4 {[%emt 0:00:00]} g1=Q {[%emt 0:00:03]} 0-1

[Event "GER-chW Blitz 2019"]
[Site "Magdeburg"]
[Date "2019.05.25"]
[Round "12.11"]
[White "Birkholz, Olga"]
[Black "Kotyk, Valeriya"]
[Result "1-0"]
[ECO "C00"]
[WhiteElo "2031"]
[BlackElo "1739"]
[Annotator "NA"]
[PlyCount "65"]
[EventDate "2019.05.25"]
[EventType "tourn"]
[EventCountry "GER"]
[SourceTitle "playchess.com"]
[Source "ChessBase"]
[SourceQuality "1"]
[TimeControl "180+2"]

1. e4 {[%emt 0:00:00]} e6 {[%emt 0:00:00]} 2. Qe2 {[%emt 0:00:00]} c6 {[%emt 0:00:08]} 3. f4 {[%emt 0:00:02]} d5 {[%emt 0:00:01]} 4. e5 {[%emt 0:00:02]} c5 {[%emt 0:00:02]} 5. Nf3 {[%emt 0:00:02]} Nc6 {[%emt 0:00:01]} 6. d3 {[%emt 0:00:06]} Nge7 {[%emt 0:00:02]} 7. g3 {[%emt 0:00:02]} Nf5 {[%emt 0:00:01]} 8. c3 {[%emt 0:00:03]} b6 {[%emt 0:00:02]} 9. Bh3 {[%emt 0:00:07]} Nfe7 {[%emt 0:00:03]} 10. Na3 {[%emt 0:00:07]} Bb7 {[%emt 0:00:02]} 11. Nb5 {[%emt 0:00:13]} Ng6 {[%emt 0:00:06]} 12. f5 {[%emt 0:00:07]} exf5 {[%emt 0:00:17]} 13. Bxf5 {[%emt 0:00:01]} a6 {[%emt 0:00:21]} 14. Nd6+ {[%emt 0:00:19]} Bxd6 {[%emt 0:00:03]} 15. exd6+ {[%emt 0:00:02]} Kf8 {[%emt 0:00:00]} 16. d7 {[%emt 0:00:06]} Qe7 {[%emt 0:00:12]} 17. Bf4 {[%emt 0:00:09]} Qxe2+ {[%emt 0:00:03]} 18. Kxe2 {[%emt 0:00:01]} f6 {[%emt 0:00:27]} 19. Bd6+ {[%emt 0:00:04]} Kf7 {[%emt 0:00:00]} 20. Kd2 {[%emt 0:00:11]} Nge7 {[%emt 0:00:03]} 21. Bh3 {[%emt 0:00:08]} d4 {[%emt 0:00:14]} 22. Rhf1 {[%emt 0:00:04]} dxc3+ {[%emt 0:00:02]} 23. bxc3 {[%emt 0:00:01]} c4 {[%emt 0:00:18]} 24. Ng5+ {[%emt 0:00:04]} Kg6 {[%emt 0:00:04]} 25. Ne6 {[%emt 0:00:05]} Nd5 {[%emt 0:00:13]} 26. dxc4 {[%emt 0:00:10]} Nd8 {[%emt 0:00:12]} 27. cxd5 {[%emt 0:00:03]} Bxd5 {[%emt 0:00:01]} 28. Nf4+ {[%emt 0:00:03]} Kf7 29. Nxd5 b5 {[%emt 0:00:12]} 30. Rae1 {[%emt 0:00:05]} Nc6 {[%emt 0:00:05]} 31. Be6+ {[%emt 0:00:03]} Kg6 {[%emt 0:00:02]} 32. Nf4+ {[%emt 0:00:01]} Kh6 {[%emt 0:00:02]} 33. Bd5 {[%emt 0:00:02]} 1-0

[Event "GER-chW Blitz 2019"]
[Site "Magdeburg"]
[Date "2019.05.25"]
[Round "12.12"]
[White "Rath, Alina"]
[Black "Silz, Elisa"]
[Result "1-0"]
[ECO "A16"]
[WhiteElo "2042"]
[BlackElo "1977"]
[Annotator "NA"]
[PlyCount "98"]
[EventDate "2019.05.25"]
[EventType "tourn"]
[EventCountry "GER"]
[SourceTitle "playchess.com"]
[Source "ChessBase"]
[SourceQuality "1"]
[TimeControl "180+2"]

1. c4 {[%emt 0:00:00]} Nf6 {[%emt 0:00:00]} 2. Nc3 {[%emt 0:00:00]} g6 {[%emt 0:00:00]} 3. g3 {[%emt 0:00:01]} Bg7 {[%emt 0:00:00]} 4. Bg2 {[%emt 0:00:01]} d6 {[%emt 0:00:00]} 5. e4 {[%emt 0:00:00]} O-O {[%emt 0:00:01]} 6. Nge2 {[%emt 0:00:01]} e5 {[%emt 0:00:01]} 7. O-O {[%emt 0:00:01]} c6 {[%emt 0:00:01]} 8. d3 a6 9. h3 {[%emt 0:00:03]} b5 {[%emt 0:00:00]} 10. b3 {[%emt 0:00:02]} Nbd7 {[%emt 0:00:03]} 11. Be3 {[%emt 0:00:03]} b4 {[%emt 0:00:02]} 12. Na4 {[%emt 0:00:04]} c5 {[%emt 0:00:01]} 13. Qd2 {[%emt 0:00:04]} Bb7 {[%emt 0:00:03]} 14. Kh2 {[%emt 0:00:02]} Ne8 {[%emt 0:00:06]} 15. Bh6 {[%emt 0:00:03]} Qc7 {[%emt 0:00:09]} 16. Bxg7 {[%emt 0:00:02]} Kxg7 {[%emt 0:00:01]} 17. f4 {[%emt 0:00:02]} f5 {[%emt 0:00:07]} 18. exf5 {[%emt 0:00:15]} Bxg2 {[%emt 0:00:04]} 19. Kxg2 {[%emt 0:00:01]} Rxf5 {[%emt 0:00:13]} 20. g4 {[%emt 0:00:02]} Rf8 {[%emt 0:00:03]} 21. Qe3 {[%emt 0:00:13]} Nef6 {[%emt 0:00:17]} 22. f5 {[%emt 0:00:10]} Qc6+ {[%emt 0:00:11]} 23. Kh2 {[%emt 0:00:03]} d5 {[%emt 0:00:12]} 24. g5 {[%emt 0:00:10]} Nh5 {[%emt 0:00:07]} 25. f6+ {[%emt 0:00:02]} Kh8 {[%emt 0:00:07]} 26. Rac1 {[%emt 0:00:25]} d4 {[%emt 0:00:14]} 27. Qf3 {[%emt 0:00:10]} Qe6 {[%emt 0:00:15]} 28. Rce1 {[%emt 0:00:17]} Qd6 {[%emt 0:00:11]} 29. Kh1 {[%emt 0:00:09]} Rae8 {[%emt 0:00:02]} 30. Ng3 {[%emt 0:00:13]} e4 {[%emt 0:00:13]} 31. Nxe4 {[%emt 0:00:11]} Rxe4 {[%emt 0:00:13]} 32. Rxe4 {[%emt 0:00:02]} Ng3+ {[%emt 0:00:05]} 33. Kg2 {[%emt 0:00:01]} Nxf1 {[%emt 0:00:10]} 34. Kxf1 {[%emt 0:00:05]} Ne5 {[%emt 0:00:05]} 35. Qf4 {[%emt 0:00:08]} Nf7 {[%emt 0:00:05]} 36. Qxd6 {[%emt 0:00:06]} Nxd6 {[%emt 0:00:01]} 37. Re6 {[%emt 0:00:07]} Nf7 {[%emt 0:00:09]} 38. h4 {[%emt 0:00:08]} h6 {[%emt 0:00:01]} 39. gxh6 {[%emt 0:00:03]} Nxh6 {[%emt 0:00:02]} 40. Nxc5 {[%emt 0:00:04]} Ng4 {[%emt 0:00:01]} 41. Nd7 {[%emt 0:00:09]} Rf7 {[%emt 0:00:06]} 42. Re8+ {[%emt 0:00:21]} Kh7 {[%emt 0:00:01]} 43. Kg2 {[%emt 0:00:09]} Ne3+ {[%emt 0:00:03]} 44. Kf3 {[%emt 0:00:06]} Nf5 {[%emt 0:00:02]} 45. Rd8 {[%emt 0:00:06]} Ne3 {[%emt 0:00:09]} 46. Nf8+ {[%emt 0:00:00]} Rxf8 {[%emt 0:00:02]} 47. Rxf8 {[%emt 0:00:00]} Nd1 {[%emt 0:00:04]} 48. Rf7+ {[%emt 0:00:01]} Kg8 {[%emt 0:00:01]} 49. Ra7 {[%emt 0:00:02]} Nb2 {[%emt 0:00:02]} 1-0

[Event "GER-chW Blitz 2019"]
[Site "Magdeburg"]
[Date "2019.05.25"]
[Round "13.1"]
[White "Silz, Elisa"]
[Black "Roesler, Hannah Clara Hed"]
[Result "1-0"]
[ECO "E16"]
[WhiteElo "1977"]
[BlackElo "1619"]
[Annotator "NA"]
[PlyCount "78"]
[EventDate "2019.05.25"]
[EventType "tourn"]
[EventCountry "GER"]
[SourceTitle "playchess.com"]
[Source "ChessBase"]
[SourceQuality "1"]
[TimeControl "180+2"]

1. d4 {[%emt 0:00:00]} Nf6 {[%emt 0:00:00]} 2. Nf3 {[%emt 0:00:00]} e6 {[%emt 0:00:06]} 3. c4 {[%emt 0:00:00]} Bb4+ {[%emt 0:00:02]} 4. Bd2 {[%emt 0:00:01]} Qe7 {[%emt 0:00:01]} 5. Nc3 {[%emt 0:00:01]} Bxc3 {[%emt 0:00:13]} 6. Bxc3 {[%emt 0:00:01]} Ne4 {[%emt 0:00:02]} 7. g3 {[%emt 0:00:06]} O-O {[%emt 0:00:21]} 8. Bg2 {[%emt 0:00:00]} d6 {[%emt 0:00:19]} 9. O-O {[%emt 0:00:05]} Nxc3 {[%emt 0:00:01]} 10. bxc3 {[%emt 0:00:01]} Nc6 {[%emt 0:00:19]} 11. Rb1 {[%emt 0:00:06]} Rb8 {[%emt 0:00:14]} 12. e4 {[%emt 0:00:08]} e5 {[%emt 0:00:04]} 13. Qc2 {[%emt 0:00:11]} Bg4 {[%emt 0:00:10]} 14. d5 {[%emt 0:00:12]} Nd8 {[%emt 0:00:17]} 15. h3 {[%emt 0:00:17]} Bh5 {[%emt 0:00:10]} 16. Nh4 {[%emt 0:00:09]} Bg6 {[%emt 0:00:32]} 17. Qe2 {[%emt 0:00:32]} b6 {[%emt 0:00:13]} 18. a4 {[%emt 0:00:07]} a5 {[%emt 0:00:04]} 19. Bf3 {[%emt 0:00:13]} Nb7 {[%emt 0:00:05]} 20. Ra1 {[%emt 0:00:13]} Nc5 {[%emt 0:00:06]} 21. Rfe1 {[%emt 0:00:10]} f5 {[%emt 0:00:05]} 22. exf5 {[%emt 0:00:15]} Bxf5 {[%emt 0:00:02]} 23. Nxf5 {[%emt 0:00:10]} Rxf5 {[%emt 0:00:01]} 24. Bg4 {[%emt 0:00:05]} Rf6 {[%emt 0:00:06]} 25. f4 {[%emt 0:00:06]} e4 {[%emt 0:00:08]} 26. Bf3 {[%emt 0:00:15]} Re8 {[%emt 0:00:02]} 27. Bg2 {[%emt 0:00:01]} Ref8 {[%emt 0:00:03]} 28. Bxe4 {[%emt 0:00:06]} Nxe4 {[%emt 0:00:03]} 29. Qxe4 {[%emt 0:00:01]} Qxe4 {[%emt 0:00:02]} 30. Rxe4 Kf7 {[%emt 0:00:01]} 31. Rae1 {[%emt 0:00:03]} g6 {[%emt 0:00:04]} 32. Re7+ {[%emt 0:00:01]} Kg8 {[%emt 0:00:02]} 33. Rxc7 {[%emt 0:00:01]} Rb8 {[%emt 0:00:04]} 34. Ree7 {[%emt 0:00:01]} g5 {[%emt 0:00:03]} 35. Rg7+ {[%emt 0:00:01]} Kh8 {[%emt 0:00:02]} 36. Rxh7+ {[%emt 0:00:01]} Kg8 {[%emt 0:00:01]} 37. fxg5 {[%emt 0:00:02]} Rg6 {[%emt 0:00:02]} 38. h4 {[%emt 0:00:03]} Re8 {[%emt 0:00:03]} 39. Kf2 {[%emt 0:00:01]} Rf8+ 1-0

[Event "GER-chW Blitz 2019"]
[Site "Magdeburg"]
[Date "2019.05.25"]
[Round "13.2"]
[White "Kotyk, Valeriya"]
[Black "Rath, Alina"]
[Result "1-0"]
[ECO "D32"]
[WhiteElo "1739"]
[BlackElo "2042"]
[Annotator "NA"]
[PlyCount "60"]
[EventDate "2019.05.25"]
[EventType "tourn"]
[EventCountry "GER"]
[SourceTitle "playchess.com"]
[Source "ChessBase"]
[SourceQuality "1"]
[TimeControl "180+2"]

1. d4 {[%emt 0:00:00]} d5 {[%emt 0:00:00]} 2. c4 {[%emt 0:00:01]} e6 {[%emt 0:00:00]} 3. Nc3 {[%emt 0:00:01]} c5 {[%emt 0:00:02]} 4. Nf3 {[%emt 0:00:06]} Nc6 {[%emt 0:00:01]} 5. cxd5 {[%emt 0:00:03]} exd5 {[%emt 0:00:03]} 6. e3 {[%emt 0:00:03]} Nf6 {[%emt 0:00:02]} 7. Be2 {[%emt 0:00:05]} Be7 {[%emt 0:00:01]} 8. O-O {[%emt 0:00:01]} O-O {[%emt 0:00:02]} 9. a3 {[%emt 0:00:02]} a6 {[%emt 0:00:05]} 10. dxc5 {[%emt 0:00:01]} Bxc5 {[%emt 0:00:01]} 11. b4 {[%emt 0:00:01]} Ba7 {[%emt 0:00:07]} 12. Qc2 {[%emt 0:00:25]} Bg4 {[%emt 0:00:19]} 13. Rd1 {[%emt 0:00:02]} Rc8 {[%emt 0:00:02]} 14. Bb2 {[%emt 0:00:17]} Qd7 {[%emt 0:00:21]} 15. Nd4 {[%emt 0:00:25]} Bxd4 {[%emt 0:00:17]} 16. Bxg4 {[%emt 0:00:10]} Qxg4 {[%emt 0:00:03]} 17. exd4 {[%emt 0:00:23]} Nxd4 {[%emt 0:00:15]} 18. Qd3 {[%emt 0:00:02]} Ne6 {[%emt 0:00:46]} 19. Qg3 {[%emt 0:00:08]} Qxg3 {[%emt 0:00:03]} 20. hxg3 {[%emt 0:00:01]} Rfd8 {[%emt 0:00:05]} 21. Ne2 {[%emt 0:00:01]} Ne4 {[%emt 0:00:10]} 22. Be5 {[%emt 0:00:12]} Rc2 {[%emt 0:00:04]} 23. Nd4 {[%emt 0:00:03]} Rxf2 {[%emt 0:00:09]} 24. Rac1 {[%emt 0:00:14]} Nxd4 {[%emt 0:00:16]} 25. Bxd4 {[%emt 0:00:01]} Ra2 {[%emt 0:00:01]} 26. Rc7 {[%emt 0:00:03]} Nxg3 {[%emt 0:00:07]} 27. Bc5 {[%emt 0:00:08]} f6 {[%emt 0:00:05]} 28. Rxb7 {[%emt 0:00:02]} Ne4 {[%emt 0:00:15]} 29. Rd3 {[%emt 0:00:12]} Re8 {[%emt 0:00:05]} 30. Rxd5 {[%emt 0:00:05]} Ng5 1-0